fUST/lending_fUST_20250730
["ID","MTS","AMOUNT","RATE_DAILY","PERIOD"]
[375979808,1753807851620,-151.0,0.00020236,2]
[375979810,1753807851630,-225.870196,0.00020273,2]
[375979812,1753807851640,-2231.69749388,0.00020279,3]
[375979814,1753807851649,-151.0,0.00020314,2]
[375979816,1753807851658,-254.584463,0.00020314,2]
[375979818,1753807851667,-254.584463,0.00020314,2]
[375979820,1753807851676,-439.25,0.00020341,2]
[375979822,1753807851687,-150.0,0.00020363,2]
[375979824,1753807851696,-151.342,0.00020363,2]
[375979826,1753807851705,-150.17,0.00020363,2]
[375979828,1753807851714,-150.884,0.00020363,2]
[375979830,1753807851723,-150.0,0.00020363,2]
[375979832,1753807851733,-250.0,0.00020363,2]
[375979834,1753807851743,-246.136,0.00020363,2]
[375979836,1753807851752,-244.179,0.00020363,2]
[375979838,1753807851761,-482.805732,0.00020417,2]
[375979840,1753807851771,-482.805732,0.00020417,2]
[375979842,1753807851780,-2231.69749388,0.00020417,3]
[375979844,1753807851793,-500.0,0.00020421,2]
[375979845,1753807851804,-502.01696615,0.00020421,2]
[375979847,1753807851813,-1000.0,0.00020421,2]
[375979849,1753807851823,-1000.0,0.00020421,2]
[375979851,1753807851832,-460.0,0.00020427,2]
[375979853,1753807851841,-460.0,0.00020427,2]
[375979855,1753807851850,-273.41383136,0.00020427,2]
[375979871,1753807851990,-460.0,0.00020427,2]
[375979873,1753807852000,-154.61522,0.00020427,2]
[375979875,1753807852009,-460.0,0.00020427,2]
[375979877,1753807852019,-252.73,0.00020427,2]
[375979879,1753807852028,-491.69,0.00020427,2]
[375979881,1753807852037,-811.66,0.00020427,2]
[375979883,1753807852047,-3307.02,0.00020427,2]
[375979885,1753807852056,-460.0,0.00020427,2]
[375979887,1753807852065,-548.32,0.00020427,2]
[375979889,1753807852074,-544.18,0.00020427,2]
[375979890,1753807852083,-579.34,0.00020427,2]
[375979892,1753807852093,-507.41,0.00020427,2]
[375979894,1753807852103,-1150.02,0.00020427,2]
[375979896,1753807852112,-460.0,0.00020427,2]
[375979898,1753807852121,-2693.06,0.00020427,2]
[375979900,1753807852131,-460.0,0.00020427,2]
[375979902,1753807852140,-473.88,0.00020427,2]
[375979904,1753807852150,-1832.82,0.00020427,2]
[375979906,1753807852159,-460.0,0.00020427,2]
[375979908,1753807852169,-5209.05,0.00020427,2]
[375979910,1753807852178,-608.37,0.00020427,2]
[375979912,1753807852187,-460.0,0.00020427,2]
[375979914,1753807852196,-460.0,0.00020427,2]
[375979916,1753807852205,-460.0,0.00020427,2]
[375979918,1753807852214,-460.0,0.00020427,2]
[375979920,1753807852223,-2060.05,0.00020427,2]
[375979921,1753807852232,-566.85,0.00020427,2]
[375979923,1753807852242,-475.64,0.00020427,2]
[375979925,1753807852252,-801.11,0.00020427,2]
[375979927,1753807852261,-460.0,0.00020427,2]
[375979929,1753807852270,-460.0,0.00020428,2]
[375979931,1753807852280,-756.37,0.00020428,2]
[375979933,1753807852292,-516.73,0.00020428,2]
[375979935,1753807852305,-585.51,0.00020428,2]
[375979937,1753807852315,-460.0,0.00020428,2]
[375979939,1753807852325,-595.87,0.00020428,2]
[375979941,1753807852334,-1867.35,0.00020428,2]
[375979943,1753807852345,-460.0,0.00020428,2]
[375979945,1753807852354,-151.0,0.00020429,2]
[375979947,1753807852364,-177.038864,0.00020429,2]
[375979949,1753807852374,-177.038864,0.00020429,2]
[375979951,1753807852383,-595.43,0.00020429,2]
[375979953,1753807852393,-667.75,0.00020429,2]
[375979955,1753807852402,-460.0,0.00020429,2]
[375979957,1753807852411,-460.0,0.00020429,2]
[375979959,1753807852420,-460.0,0.00020429,2]
[375979961,1753807852429,-739.29,0.00020429,2]
[375979963,1753807852439,-620.28,0.00020429,2]
[375979965,1753807852449,-460.0,0.00020429,2]
[375979967,1753807852458,-684.72,0.00020429,2]
[375979969,1753807852470,-460.0,0.00020429,2]
[375979971,1753807852480,-928.03,0.00020429,2]
[375979973,1753807852490,-635.4,0.00020429,2]
[375979975,1753807852501,-460.0,0.00020429,2]
[375979977,1753807852510,-2645.16,0.00020429,2]
[375979979,1753807852519,-1559.34,0.00020429,2]
[375979981,1753807852528,-460.0,0.00020429,2]
[375979983,1753807852537,-2524.0,0.0002043,2]
[375979985,1753807852547,-460.0,0.0002043,2]
[375979987,1753807852556,-2035.27,0.0002043,2]
[375979989,1753807852565,-460.0,0.0002043,2]
[375979991,1753807852574,-696.22,0.0002043,2]
[375979993,1753807852584,-460.0,0.0002043,2]
[375979995,1753807852593,-460.0,0.0002043,2]
[375979997,1753807852602,-460.0,0.0002043,2]
[375979999,1753807852611,-7088.72,0.0002043,2]
[375980001,1753807852620,-560.37173747,0.00020438,2]
[375980003,1753807852629,-216.988626,0.00020439,2]
[375980005,1753807852638,-216.988626,0.00020439,2]
[375980007,1753807852648,-1910.62,0.00020439,2]
[375980008,1753807852657,-230.68623,0.0002044,2]
[375980011,1753807852666,-230.68623,0.0002044,2]
[375980013,1753807852675,-460.0,0.0002044,2]
[375980015,1753807852685,-1479.1,0.0002044,2]
[375980017,1753807852694,-151.0,0.00020441,2]
[375980019,1753807852703,-151.0,0.00020441,2]
[375980020,1753807852713,-199.418952,0.00020441,2]
[375980022,1753807852722,-454.216416,0.00020441,2]
[375980024,1753807852732,-454.216416,0.00020441,2]
[375980026,1753807852741,-1785.12,0.00020441,2]
[375980028,1753807852751,-182.92149,0.00020441,2]
[375980030,1753807852761,-182.92149,0.00020441,2]
[375980032,1753807852771,-2987.64,0.00020441,2]
[375980034,1753807852782,-2558.99,0.00020441,2]
[375980036,1753807852792,-585.67,0.00020441,2]
[375980038,1753807852801,-460.0,0.00020441,2]
[375980040,1753807852810,-2659.24,0.00020441,2]
[375980042,1753807852820,-151.0,0.00020443,2]
[375980044,1753807852830,-151.0,0.00020443,2]
[375980046,1753807852840,-300.630583,0.00020443,2]
[375980048,1753807852849,-151.0,0.00020443,2]
[375980050,1753807852858,-1500.0,0.00020468,2]
[375980052,1753807852867,-169.030691,0.00020472,2]
[375980054,1753807852877,-151.0,0.00020473,2]
[375980056,1753807852886,-319.987641,0.00020473,2]
[375980058,1753807852895,-319.987641,0.00020473,2]
[375980060,1753807852904,-151.0,0.00020474,2]
[375980062,1753807852913,-151.0,0.00020474,2]
[375980064,1753807852922,-151.0,0.00020474,2]
[375980066,1753807852932,-151.0,0.00020474,2]
[375980068,1753807852945,-151.0,0.00020474,2]
[375980070,1753807852955,-190.029278,0.00020474,2]
[375980072,1753807852964,-190.029278,0.00020474,2]
[375980074,1753807852974,-151.0,0.00020474,2]
[375980076,1753807852983,-274.014233,0.00020474,2]
[375980078,1753807852992,-274.014233,0.00020474,2]
[375980080,1753807853002,-260.0,0.00020474,2]
[375980082,1753807853012,-420.0,0.00020477,2]
[375980084,1753807853021,-151.0,0.00020512,2]
[375980086,1753807853031,-254.584463,0.00020512,2]
[375980088,1753807853040,-254.584463,0.00020512,2]
[375980090,1753807853049,-216.988626,0.00020521,2]
[375980092,1753807853058,-216.988626,0.00020521,2]
[375980094,1753807853068,-5888.0,0.00020535,2]
[375980096,1753807853077,-198.29038504,0.00020548,2]
[375980098,1753807853088,-2231.69749388,0.00020555,3]
[375980100,1753807853098,-732.80277878,0.00020563,2]
[375980102,1753807853106,-482.805732,0.00020578,2]
[375980104,1753807853115,-482.805732,0.00020578,2]
[375980105,1753807853124,-151.0,0.0002059,2]
[375980107,1753807853134,-479.0,0.00020591,2]
[375980109,1753807853143,-727.77082838,0.00020651,2]
[375980111,1753807853155,-155.0,0.00020675,2]
[375980113,1753807853165,-1957.897,0.00020692,2]
[375980115,1753807853175,-2231.69749388,0.00020693,3]
[375980117,1753807853185,-460.0,0.00020701,2]
[375980119,1753807853196,-268.95137729,0.00020701,2]
[375980121,1753807853205,-434.22463656,0.00020701,2]
[375980123,1753807853214,-460.0,0.00020701,2]
[375980125,1753807853223,-491.69,0.00020701,2]
[375980127,1753807853232,-811.66,0.00020701,2]
[375980129,1753807853241,-3307.02,0.00020701,2]
[375980131,1753807853253,-460.0,0.00020701,2]
[375980133,1753807853263,-548.32,0.00020701,2]
[375980135,1753807853272,-544.18,0.00020701,2]
[375980137,1753807853281,-579.34,0.00020701,2]
[375980139,1753807853291,-507.41,0.00020701,2]
[375980141,1753807853305,-1150.02,0.00020701,2]
[375980143,1753807853314,-460.0,0.00020701,2]
[375980145,1753807853323,-2693.06,0.00020701,2]
[375980147,1753807853332,-593.29983153,0.00020701,2]
[375980149,1753807853342,-473.88,0.00020701,2]
[375980151,1753807853351,-1832.82,0.00020701,2]
[375980153,1753807853361,-460.0,0.00020701,2]
[375980155,1753807853370,-608.37,0.00020701,2]
[375980157,1753807853380,-5209.05,0.00020701,2]
[375980159,1753807853390,-460.0,0.00020701,2]
[375980161,1753807853399,-460.0,0.00020701,2]
[375980163,1753807853408,-460.0,0.00020701,2]
[375980165,1753807853418,-460.0,0.00020701,2]
[375980167,1753807853427,-2060.05,0.00020701,2]
[375980169,1753807853437,-566.85,0.00020701,2]
[375980171,1753807853446,-475.64,0.00020701,2]
[375980173,1753807853455,-801.11,0.00020701,2]
[375980175,1753807853465,-382.2622944,0.00020701,2]
[375980177,1753807853474,-460.0,0.00020702,2]
[375980179,1753807853483,-756.37,0.00020702,2]
[375980181,1753807853493,-516.73,0.00020702,2]
[375980183,1753807853503,-585.51,0.00020702,2]
[375980185,1753807853512,-460.0,0.00020702,2]
[375980187,1753807853521,-595.87,0.00020702,2]
[375980189,1753807853531,-1867.35,0.00020702,2]
[375980191,1753807853540,-460.0,0.00020702,2]
[375980193,1753807853550,-151.0,0.00020703,2]
[375980195,1753807853559,-177.038864,0.00020703,2]
[375980197,1753807853570,-177.038864,0.00020703,2]
[375980199,1753807853580,-595.43,0.00020703,2]
[375980201,1753807853589,-667.75,0.00020703,2]
[375980203,1753807853600,-460.0,0.00020703,2]
[375980205,1753807853609,-460.0,0.00020703,2]
[375980207,1753807853618,-460.0,0.00020703,2]
[375980208,1753807853627,-739.29,0.00020703,2]
[375980210,1753807853637,-620.28,0.00020703,2]
[375980212,1753807853646,-460.0,0.00020703,2]
[375980214,1753807853655,-684.72,0.00020703,2]
[375980216,1753807853664,-460.0,0.00020703,2]
[375980218,1753807853673,-928.03,0.00020703,2]
[375980220,1753807853683,-635.4,0.00020703,2]
[375980222,1753807853692,-460.0,0.00020703,2]
[375980224,1753807853702,-2645.16,0.00020703,2]
[375980226,1753807853711,-1559.34,0.00020703,2]
[375980227,1753807853721,-348.35,0.00020703,2]
[375980228,1753807853730,-2524.0,0.00020704,2]
[375980229,1753807853739,-460.0,0.00020704,2]
[375980230,1753807853750,-2035.27,0.00020704,2]
[375980231,1753807853760,-502.13777741,0.00020704,2]
[375980232,1753807853769,-696.22,0.00020704,2]
[375980233,1753807853779,-460.0,0.00020704,2]
[375980235,1753807853789,-460.0,0.00020704,2]
[375980237,1753807853798,-460.0,0.00020704,2]
[375980239,1753807853808,-230.68623,0.00020713,2]
[375980241,1753807853818,-230.68623,0.00020713,2]
[375980243,1753807853828,-1910.62,0.00020713,2]
[375980245,1753807853837,-460.0,0.00020714,2]
[375980247,1753807853847,-1479.1,0.00020714,2]
[375980249,1753807853857,-151.0,0.00020715,2]
[375980251,1753807853867,-1785.12,0.00020715,2]
[375980253,1753807853876,-2987.64,0.00020715,2]
[375980254,1753807853886,-2558.99,0.00020715,2]
[375980257,1753807853896,-585.67,0.00020715,2]
[375980258,1753807853906,-460.0,0.00020715,2]
[375980260,1753807853918,-2659.24,0.00020715,2]
[375980262,1753807853927,-151.0,0.00020717,2]
[375980264,1753807853937,-225.870196,0.00020721,3]
[375980266,1753807853947,-454.216416,0.00020728,2]
[375980268,1753807853956,-454.216416,0.00020728,2]
[375980270,1753807853966,-182.92149,0.00020728,2]
[375980272,1753807853975,-182.92149,0.00020728,2]
[375980274,1753807853984,-545.31927109,0.00020742,2]
[375980276,1753807853994,-151.0,0.00020746,2]
[375980278,1753807854009,-151.0,0.00020746,2]
[375980280,1753807854019,-151.0,0.00020746,2]
[375980282,1753807854028,-169.030691,0.00020747,2]
[375980284,1753807854045,-169.030691,0.00020747,2]
[375980286,1753807854062,-319.987641,0.00020747,2]
[375980288,1753807854071,-319.987641,0.00020747,2]
[375980290,1753807854080,-216.988626,0.00020747,2]
[375980292,1753807854090,-216.988634,0.00020747,2]
[375980294,1753807854100,-1500.0,0.00020747,7]
[375980296,1753807854109,-1500.0,0.00020747,7]
[375980298,1753807854119,-1500.0,0.00020747,7]
[375980300,1753807854128,-1500.0,0.00020747,7]
[375980302,1753807854138,-1500.0,0.00020747,7]
[375980304,1753807854147,-1500.0,0.00020747,7]
[375980306,1753807854156,-1500.0,0.00020747,7]
[375980308,1753807854165,-1500.0,0.00020747,7]
[375980310,1753807854175,-1500.0,0.00020747,7]
[375980312,1753807854184,-1500.0,0.00020747,7]
[375980314,1753807854193,-1500.0,0.00020747,7]
[375980316,1753807854203,-1500.0,0.00020747,7]
[375980318,1753807854212,-1500.0,0.00020747,7]
[375980320,1753807854221,-1500.0,0.00020747,7]
[375980322,1753807854230,-1500.0,0.00020747,7]
[375980324,1753807854239,-1500.0,0.00020747,7]
[375980326,1753807854251,-1500.0,0.00020747,7]
[375980328,1753807854261,-1500.0,0.00020747,7]
[375980330,1753807854270,-1500.0,0.00020747,7]
[375980332,1753807854279,-1500.0,0.00020747,7]
[375980334,1753807854288,-1500.0,0.00020747,7]
[375980336,1753807854299,-1500.0,0.00020747,7]
[375980338,1753807854308,-1500.0,0.00020747,7]
[375980340,1753807854318,-1500.0,0.00020747,7]
[375980342,1753807854326,-1500.0,0.00020747,7]
[375980344,1753807854335,-1500.0,0.00020747,7]
[375980346,1753807854345,-1500.0,0.00020747,7]
[375980348,1753807854354,-1500.0,0.00020747,7]
[375980350,1753807854363,-1500.0,0.00020747,7]
[375980351,1753807854373,-1500.0,0.00020747,7]
[375980353,1753807854383,-1500.0,0.00020747,7]
[375980355,1753807854392,-1500.0,0.00020747,7]
[375980358,1753807854401,-1500.0,0.00020747,7]
[375980360,1753807854410,-1500.0,0.00020747,7]
[375980362,1753807854419,-1500.0,0.00020747,7]
[375980364,1753807854429,-1500.0,0.00020747,7]
[375980366,1753807854438,-1500.0,0.00020747,7]
[375980368,1753807854447,-1500.0,0.00020747,7]
[375980370,1753807854456,-1500.0,0.00020747,7]
[375980372,1753807854466,-1500.0,0.00020747,7]
[375980373,1753807854474,-1500.0,0.00020747,7]
[375980375,1753807854484,-1500.0,0.00020747,7]
[375980377,1753807854493,-1500.0,0.00020747,7]
[375980379,1753807854504,-1500.0,0.00020747,7]
[375980381,1753807854513,-1500.0,0.00020747,7]
[375980383,1753807854522,-1500.0,0.00020747,7]
[375980385,1753807854531,-1500.0,0.00020747,7]
[375980387,1753807854541,-1500.0,0.00020747,7]
[375980389,1753807854550,-1500.0,0.00020747,7]
[375980391,1753807854560,-1500.0,0.00020747,7]
[375980393,1753807854569,-1500.0,0.00020747,7]
[375980395,1753807854578,-1500.0,0.00020747,7]
[375980397,1753807854587,-1500.0,0.00020747,7]
[375980399,1753807854598,-1500.0,0.00020747,7]
[375980401,1753807854606,-1500.0,0.00020747,7]
[375980403,1753807854616,-1500.0,0.00020747,7]
[375980405,1753807854626,-1500.0,0.00020747,7]
[375980407,1753807854635,-1500.0,0.00020747,7]
[375980409,1753807854644,-1500.0,0.00020747,7]
[375980411,1753807854653,-1500.0,0.00020747,7]
[375980413,1753807854662,-1500.0,0.00020747,7]
[375980415,1753807854672,-1500.0,0.00020747,7]
[375980417,1753807854681,-1500.0,0.00020747,7]
[375980419,1753807854691,-1500.0,0.00020747,7]
[375980421,1753807854700,-1500.0,0.00020747,7]
[375980423,1753807854710,-1500.0,0.00020747,7]
[375980425,1753807854720,-1500.0,0.00020747,7]
[375980427,1753807854729,-1500.0,0.00020747,7]
[375980429,1753807854738,-1500.0,0.00020747,7]
[375980431,1753807854748,-1500.0,0.00020747,7]
[375980433,1753807854757,-1500.0,0.00020747,7]
[375980435,1753807854766,-515.933466,0.00020747,7]
[375980437,1753807854775,-151.0,0.00020747,2]
[375980439,1753807854784,-254.584463,0.00020747,2]
[375980441,1753807854794,-254.584458,0.00020747,2]
[375980443,1753807854803,-230.68623,0.00020747,2]
[375980445,1753807854812,-230.68623,0.00020747,2]
[375980447,1753807854821,-151.0,0.00020747,2]
[375980449,1753807854830,-177.038864,0.00020747,2]
[375980451,1753807854839,-177.038864,0.00020747,2]
[375980453,1753807854849,-454.216416,0.00020747,2]
[375980455,1753807854858,-454.216416,0.00020747,2]
[375980457,1753807854867,-182.92149,0.00020747,2]
[375980459,1753807854876,-182.92149,0.00020747,2]
[375980461,1753807854885,-482.805732,0.00020747,2]
[375980463,1753807854894,-482.805732,0.00020747,2]
[375980465,1753807854905,-151.0,0.00020748,2]
[375980467,1753807854914,-151.0,0.00020749,2]
[375980469,1753807854924,-190.029278,0.0002077,2]
[375980471,1753807854933,-190.029278,0.0002077,2]
[375980473,1753807854943,-151.0,0.0002077,2]
[375980488,1753807855074,-151.0,0.00020772,2]
[375980490,1753807855085,-151.0,0.00020773,2]
[375980492,1753807855095,-151.0,0.00020773,2]
[375980494,1753807855104,-151.0,0.00020779,2]
[375980496,1753807855113,-151.0,0.00020779,2]
[375980498,1753807855122,-219.700084,0.00020779,2]
[375980500,1753807855131,-274.014233,0.00020779,2]
[375980502,1753807855140,-274.014233,0.00020779,2]
[375980504,1753807855149,-312.16666667,0.000208,7]
[375980506,1753807855159,-214.91980558,0.000208,7]
[375980508,1753807855168,-460.5085953,0.000208,7]
[375980510,1753807855177,-160.0,0.000208,7]
[375980512,1753807855186,-292.83,0.00020805,2]
[375980514,1753807855196,-2231.69749388,0.00020831,4]
[375980516,1753807855205,-292.83,0.00020862,2]
[375980518,1753807855214,-151.0,0.00020871,2]
[375980520,1753807855223,-2245.5,0.00020884,4]
[375980522,1753807855232,-1000.0,0.00020889,2]
[375980524,1753807855241,-482.805732,0.00020889,2]
[375980526,1753807855251,-482.805722,0.00020889,2]
[375980528,1753807855260,-900.0,0.000209,4]
[375980530,1753807855269,-1611.71,0.000209,2]
[375980532,1753807855278,-225.870196,0.00020916,3]
[375980533,1753807855288,-292.83,0.0002092,2]
[375980535,1753807855300,-2024.42,0.00020948,3]
[375980537,1753807855309,-479.0,0.00020952,2]
[375980539,1753807855319,-151.0,0.0002096,2]
[375980541,1753807855328,-503.65022164,0.00020968,2]
[375980544,1753807855338,-2231.69749388,0.00020969,4]
[375980546,1753807855349,-460.0,0.00020975,2]
[375980548,1753807855358,-460.0,0.00020975,2]
[375980549,1753807855369,-491.69,0.00020975,2]
[375980551,1753807855378,-811.66,0.00020975,2]
[375980554,1753807855388,-3307.02,0.00020975,2]
[375980556,1753807855398,-460.0,0.00020975,2]
[375980558,1753807855407,-548.32,0.00020975,2]
[375980560,1753807855416,-544.18,0.00020975,2]
[375980561,1753807855425,-579.34,0.00020975,2]
[375980563,1753807855434,-507.41,0.00020975,2]
[375980565,1753807855443,-1150.02,0.00020975,2]
[375980567,1753807855452,-460.0,0.00020975,2]
[375980569,1753807855462,-2693.06,0.00020975,2]
[375980571,1753807855471,-473.88,0.00020975,2]
[375980573,1753807855481,-1832.82,0.00020975,2]
[375980575,1753807855490,-460.0,0.00020975,2]
[375980577,1753807855501,-608.37,0.00020975,2]
[375980579,1753807855511,-5209.05,0.00020975,2]
[375980581,1753807855520,-420.48894207,0.00020975,2]
[375980583,1753807855529,-460.0,0.00020975,2]
[375980585,1753807855538,-460.0,0.00020975,2]
[375980587,1753807855548,-460.0,0.00020975,2]
[375980589,1753807855558,-2060.05,0.00020975,2]
[375980591,1753807855567,-566.85,0.00020975,2]
[375980593,1753807855577,-475.64,0.00020975,2]
[375980595,1753807855586,-801.11,0.00020975,2]
[375980597,1753807855595,-460.0,0.00020976,2]
[375980599,1753807855607,-756.37,0.00020976,2]
[375980601,1753807855617,-516.73,0.00020976,2]
[375980603,1753807855626,-585.51,0.00020976,2]
[375980605,1753807855635,-460.0,0.00020976,2]
[375980607,1753807855644,-595.87,0.00020976,2]
[375980609,1753807855654,-1867.35,0.00020976,2]
[375980611,1753807855663,-460.0,0.00020976,2]
[375980613,1753807855673,-151.0,0.00020977,2]
[375980615,1753807855683,-177.038864,0.00020977,2]
[375980617,1753807855692,-177.038864,0.00020977,2]
[375980619,1753807855701,-595.43,0.00020977,2]
[375980621,1753807855711,-667.75,0.00020977,2]
[375980623,1753807855722,-460.0,0.00020977,2]
[375980625,1753807855731,-460.0,0.00020977,2]
[375980627,1753807855741,-739.29,0.00020977,2]
[375980629,1753807855752,-620.28,0.00020977,2]
[375980631,1753807855761,-460.0,0.00020977,2]
[375980633,1753807855771,-684.72,0.00020977,2]
[375980635,1753807855780,-460.0,0.00020977,2]
[375980637,1753807855789,-928.03,0.00020977,2]
[375980639,1753807855799,-635.4,0.00020977,2]
[375980641,1753807855808,-460.0,0.00020977,2]
[375980643,1753807855817,-2645.16,0.00020977,2]
[375980645,1753807855827,-1559.34,0.00020977,2]
[375980647,1753807855837,-2633.74,0.00020978,2]
[375980649,1753807855847,-460.0,0.00020978,2]
[375980651,1753807855856,-2035.27,0.00020978,2]
[375980653,1753807855865,-696.22,0.00020978,2]
[375980655,1753807855874,-460.0,0.00020978,2]
[375980657,1753807855884,-460.0,0.00020978,2]
[375980659,1753807855893,-460.0,0.00020978,2]
[375980661,1753807855902,-500.0,0.0002098,2]
[375980663,1753807855911,-500.0,0.0002098,2]
[375980664,1753807855921,-508.56017954,0.0002098,2]
[375980666,1753807855930,-500.0,0.0002098,2]
[375980668,1753807855940,-500.0,0.0002098,2]
[375980670,1753807855949,-500.0,0.0002098,2]
[375980672,1753807855959,-1910.62,0.00020987,2]
[375980674,1753807855968,-460.0,0.00020988,2]
[375980676,1753807855978,-1479.1,0.00020988,2]
[375980678,1753807855987,-151.0,0.00020989,2]
[375980680,1753807855998,-1785.12,0.00020989,2]
[375980682,1753807856007,-2987.64,0.00020989,2]
[375980684,1753807856016,-2558.99,0.00020989,2]
[375980686,1753807856026,-585.67,0.00020989,2]
[375980688,1753807856035,-460.0,0.00020989,2]
[375980690,1753807856044,-2659.24,0.00020989,2]
[375980692,1753807856054,-151.0,0.00020991,2]
[375980693,1753807856063,-800.0,0.00020991,2]
[375980695,1753807856073,-3000.0,0.00021012,3]
[375980697,1753807856082,-454.216416,0.00021012,2]
[375980699,1753807856091,-454.216412,0.00021012,2]
[375980701,1753807856101,-182.92149,0.00021012,2]
[375980703,1753807856110,-182.9215,0.00021012,2]
[375980705,1753807856119,-2000.0,0.00021016,2]
[375980707,1753807856129,-151.0,0.00021021,2]
[375980709,1753807856138,-151.0,0.00021021,2]
[375980711,1753807856147,-169.030691,0.00021021,2]
[375980713,1753807856156,-169.030695,0.00021021,2]
[375980715,1753807856166,-161.334964,0.00021022,2]
[375980717,1753807856175,-151.0,0.00021022,2]
[375980719,1753807856184,-151.0,0.00021022,2]
[375980721,1753807856193,-360.0,0.00021022,2]
[375980723,1753807856202,-200.0,0.00021038,15]
[375980725,1753807856211,-200.0,0.00021038,15]
[375980727,1753807856220,-200.0,0.00021038,15]
[375980729,1753807856233,-200.0,0.00021038,15]
[375980731,1753807856242,-320.0,0.00021038,15]
[375980733,1753807856252,-479.0,0.00021043,2]
[375980735,1753807856261,-190.029278,0.00021058,2]
[375980736,1753807856270,-190.029278,0.00021058,2]
[375980738,1753807856279,-151.0,0.00021058,2]
[375980740,1753807856288,-479.0,0.00021101,2]
[375980742,1753807856299,-2231.69749388,0.00021107,4]
[375980744,1753807856310,-225.870196,0.0002111,3]
[375980746,1753807856319,-151.0,0.00021119,2]
[375980748,1753807856328,-4000.0,0.00021126,3]
[375980750,1753807856339,-151.0,0.00021141,2]
[375980752,1753807856348,-4000.0,0.00021168,3]
[375980754,1753807856357,-727.77082838,0.000212,2]
[375980756,1753807856366,-5000.0,0.00021211,3]
[375980758,1753807856377,-151.0,0.00021211,2]
[375980760,1753807856386,-151.0,0.00021224,2]
[375980762,1753807856395,-151.0,0.00021224,2]
[375980764,1753807856404,-274.014233,0.00021224,2]
[375980765,1753807856413,-274.014233,0.00021224,2]
[375980767,1753807856423,-2231.69749388,0.00021245,4]
[375980769,1753807856432,-3000.0,0.00021246,3]
[375980771,1753807856441,-460.0,0.00021249,2]
[375980773,1753807856450,-460.0,0.00021249,2]
[375980775,1753807856459,-491.69,0.00021249,2]
[375980777,1753807856469,-811.66,0.00021249,2]
[375980779,1753807856478,-3307.02,0.00021249,2]
[375980781,1753807856488,-460.0,0.00021249,2]
[375980783,1753807856497,-548.32,0.00021249,2]
[375980785,1753807856506,-544.18,0.00021249,2]
[375980787,1753807856515,-579.34,0.00021249,2]
[375980789,1753807856523,-507.41,0.00021249,2]
[375980791,1753807856532,-1150.02,0.00021249,2]
[375980792,1753807856542,-460.0,0.00021249,2]
[375980794,1753807856551,-2693.06,0.00021249,2]
[375980796,1753807856560,-473.88,0.00021249,2]
[375980798,1753807856570,-1832.82,0.00021249,2]
[375980800,1753807856579,-460.0,0.00021249,2]
[375980802,1753807856588,-608.37,0.00021249,2]
[375980804,1753807856600,-5209.05,0.00021249,2]
[375980806,1753807856609,-460.0,0.00021249,2]
[375980808,1753807856618,-460.0,0.00021249,2]
[375980810,1753807856627,-460.0,0.00021249,2]
[375980812,1753807856637,-2060.05,0.00021249,2]